[Event "*** Titled Tuesday Blitz"]
[Site "Chess.com"]
[Date "2021.03.09"]
[Round "10"]
[White "Bigfish1995"]
[Black "Nf3c5"]
[Result "1-0"]
[WhiteElo "3063"]
[BlackElo "2630"]
[TimeControl "180+1"]
[EndTime "11:58:41 PST"]
[Termination "Bigfish1995 won by resignation"]

1. g4 {[%clk 0:03:00.9]} 1... d5 {[%clk 0:02:58.1]} 2. h3 {[%clk 0:03:00.9]}
2... c6 {[%clk 0:02:56]} 3. Bg2 {[%clk 0:03:01.4]} 3... e5 {[%clk 0:02:55.2]} 4.
d3 {[%clk 0:03:00.5]} 4... h5 {[%clk 0:02:51.9]} 5. g5 {[%clk 0:02:57.5]} 5...
h4 {[%clk 0:02:50.3]} 6. e4 {[%clk 0:02:56.2]} 6... Ne7 {[%clk 0:02:43.7]} 7.
exd5 {[%clk 0:02:43.1]} 7... cxd5 {[%clk 0:02:43]} 8. f4 {[%clk 0:02:43.4]} 8...
exf4 {[%clk 0:02:41.5]} 9. Ne2 {[%clk 0:02:43.5]} 9... Ng6 {[%clk 0:02:35.3]}
10. Nxf4 {[%clk 0:02:24.6]} 10... Nxf4 {[%clk 0:01:45.8]} 11. Bxf4 {[%clk
0:02:22.3]} 11... Bc5 {[%clk 0:01:46.7]} 12. Nc3 {[%clk 0:02:18.7]} 12... Be6
{[%clk 0:01:46.3]} 13. Qe2 {[%clk 0:01:58.6]} 13... Be7 {[%clk 0:01:40.6]} 14.
g6 {[%clk 0:01:46.5]} 14... O-O {[%clk 0:01:40.4]} 15. O-O {[%clk 0:01:45.7]}
15... Nc6 {[%clk 0:01:32.9]} 16. Rae1 {[%clk 0:01:41.2]} 16... Nd4 {[%clk
0:01:18.2]} 17. Qf2 {[%clk 0:01:40.6]} 17... Bf6 {[%clk 0:01:14.7]} 18. Be5
{[%clk 0:01:30.8]} 18... Bxe5 {[%clk 0:01:09.7]} 19. Rxe5 {[%clk 0:01:30.1]}
19... Nc6 {[%clk 0:01:10.2]} 20. Rxd5 {[%clk 0:01:16]} 20... Qb6 {[%clk
0:00:51.4]} 21. Rb5 {[%clk 0:01:14.1]} 21... Qxf2+ {[%clk 0:00:50.4]} 22. Rxf2
{[%clk 0:01:15]} 22... Rab8 {[%clk 0:00:46.8]} 23. gxf7+ {[%clk 0:01:11.8]}
23... Bxf7 {[%clk 0:00:46.1]} 24. Ne4 {[%clk 0:01:07]} 24... Nd4 {[%clk
0:00:43.3]} 25. Rb4 {[%clk 0:01:04.7]} 25... Rfd8 {[%clk 0:00:40.9]} 26. Ng5
{[%clk 0:00:56.6]} 26... Bh5 {[%clk 0:00:40.6]} 27. c3 {[%clk 0:00:53.6]} 27...
Ne2+ {[%clk 0:00:40.2]} 28. Kh2 {[%clk 0:00:54]} 28... Rxd3 {[%clk 0:00:31.3]}
29. Rxh4 {[%clk 0:00:53.8]} 29... Ng3 {[%clk 0:00:31.7]} 30. Ne4 {[%clk
0:00:48.8]} 30... Nxe4 {[%clk 0:00:04.9]} 31. Bxe4 {[%clk 0:00:49.7]} 31... Re3
{[%clk 0:00:03.9]} 32. Bd5+ {[%clk 0:00:49]} 1-0

[Event "*** Titled Tuesday Blitz"]
[Site "Chess.com"]
[Date "2021.03.09"]
[Round "10"]
[White "Leonid_Starozhilov"]
[Black "SF-96"]
[Result "1-0"]
[WhiteElo "2691"]
[BlackElo "2547"]
[TimeControl "180+1"]
[EndTime "11:58:41 PST"]
[Termination "Leonid_Starozhilov won by checkmate"]

1. b3 {[%clk 0:03:00.9]} 1... e5 {[%clk 0:02:56.5]} 2. Bb2 {[%clk 0:03:01.8]}
2... Nc6 {[%clk 0:02:56]} 3. e3 {[%clk 0:03:02.3]} 3... Nf6 {[%clk 0:02:54.5]}
4. Bb5 {[%clk 0:03:01.9]} 4... Bd6 {[%clk 0:02:54.6]} 5. Ne2 {[%clk 0:03:01.1]}
5... O-O {[%clk 0:02:50.1]} 6. Bxc6 {[%clk 0:02:57.9]} 6... bxc6 {[%clk
0:02:39.5]} 7. Nbc3 {[%clk 0:02:58.8]} 7... Re8 {[%clk 0:02:39.6]} 8. Ng3 {[%clk
0:02:53.3]} 8... Bf8 {[%clk 0:02:33.3]} 9. e4 {[%clk 0:02:53.1]} 9... d5 {[%clk
0:02:19.3]} 10. d3 {[%clk 0:02:50.9]} 10... Bg4 {[%clk 0:02:19.9]} 11. Qd2
{[%clk 0:02:41.1]} 11... a5 {[%clk 0:02:07.6]} 12. O-O {[%clk 0:02:31.9]} 12...
Bb4 {[%clk 0:01:56]} 13. a3 {[%clk 0:02:31.4]} 13... Bc5 {[%clk 0:01:47.9]} 14.
h3 {[%clk 0:02:15.8]} 14... Bc8 {[%clk 0:01:42.1]} 15. Na4 {[%clk 0:02:14.8]}
15... Ba7 {[%clk 0:01:33.1]} 16. Qe2 {[%clk 0:02:12.8]} 16... Ba6 {[%clk
0:01:20.5]} 17. Rae1 {[%clk 0:01:56.5]} 17... d4 {[%clk 0:01:06.5]} 18. Bc1
{[%clk 0:01:50.2]} 18... Bb5 {[%clk 0:00:50.4]} 19. Nb2 {[%clk 0:01:43.6]} 19...
a4 {[%clk 0:00:42.2]} 20. Nxa4 {[%clk 0:01:19.8]} 20... Bxa4 {[%clk 0:00:40.4]}
21. bxa4 {[%clk 0:01:20.7]} 21... Bc5 {[%clk 0:00:40.5]} 22. f4 {[%clk
0:01:21.1]} 22... exf4 {[%clk 0:00:36.2]} 23. Bxf4 {[%clk 0:01:19.7]} 23... Nd5
{[%clk 0:00:27.7]} 24. Qg4 {[%clk 0:01:12]} 24... Nxf4 {[%clk 0:00:25]} 25. Rxf4
{[%clk 0:01:07.6]} 25... g6 {[%clk 0:00:22]} 26. Ref1 {[%clk 0:01:07.1]} 26...
Rf8 {[%clk 0:00:19.4]} 27. Nf5 {[%clk 0:01:04.3]} 27... h5 {[%clk 0:00:10.4]}
28. Nh6+ {[%clk 0:00:50.8]} 28... Kh7 {[%clk 0:00:08.5]} 29. Rxf7+ {[%clk
0:00:50.2]} 29... Kxh6 {[%clk 0:00:03.7]} 30. Qf4+ {[%clk 0:00:48.3]} 30... g5
{[%clk 0:00:04.3]} 31. Qf6+ {[%clk 0:00:47.7]} 31... Qxf6 {[%clk 0:00:02.1]} 32.
R1xf6# {[%clk 0:00:48.6]} 1-0

[Event "*** Titled Tuesday Blitz"]
[Site "Chess.com"]
[Date "2021.03.09"]
[Round "10"]
[White "Fighter008"]
[Black "CrushingKings"]
[Result "0-1"]
[WhiteElo "2613"]
[BlackElo "2442"]
[TimeControl "180+1"]
[EndTime "11:58:47 PST"]
[Termination "CrushingKings won by resignation"]

1. e4 {[%clk 0:03:00.9]} 1... g6 {[%clk 0:02:57.1]} 2. Nc3 {[%clk 0:03:00.5]}
2... Bg7 {[%clk 0:02:57.5]} 3. h4 {[%clk 0:03:00.6]} 3... h5 {[%clk 0:02:57.3]}
4. d4 {[%clk 0:03:00.2]} 4... c6 {[%clk 0:02:57.6]} 5. Nf3 {[%clk 0:02:53.1]}
5... d5 {[%clk 0:02:57.4]} 6. exd5 {[%clk 0:02:52.8]} 6... cxd5 {[%clk
0:02:58.3]} 7. Bb5+ {[%clk 0:02:53.2]} 7... Nc6 {[%clk 0:02:57.8]} 8. Bf4 {[%clk
0:02:50.8]} 8... Bg4 {[%clk 0:02:57.1]} 9. Qd2 {[%clk 0:02:46.7]} 9... Bxf3
{[%clk 0:02:48.5]} 10. gxf3 {[%clk 0:02:46.2]} 10... e6 {[%clk 0:02:48.8]} 11.
O-O-O {[%clk 0:02:45.2]} 11... Qb6 {[%clk 0:02:25.8]} 12. Bxc6+ {[%clk
0:02:41.5]} 12... Qxc6 {[%clk 0:02:20.4]} 13. Be5 {[%clk 0:02:36.2]} 13... Bh6
{[%clk 0:02:11.4]} 14. Bf4 {[%clk 0:02:35.9]} 14... Rc8 {[%clk 0:02:08.4]} 15.
Kb1 {[%clk 0:02:33.4]} 15... b5 {[%clk 0:02:01.9]} 16. Bg5 {[%clk 0:02:27.3]}
16... b4 {[%clk 0:01:50.2]} 17. Ne2 {[%clk 0:02:25.5]} 17... Bxg5 {[%clk
0:01:49.8]} 18. hxg5 {[%clk 0:02:26.4]} 18... a5 {[%clk 0:01:39.1]} 19. Nf4
{[%clk 0:02:25.3]} 19... Ne7 {[%clk 0:01:39.3]} 20. Nd3 {[%clk 0:02:24.6]} 20...
Nf5 {[%clk 0:01:12.8]} 21. Ne5 {[%clk 0:02:22.8]} 21... Qc7 {[%clk 0:01:11.1]}
22. Ng4 {[%clk 0:02:18]} 22... Kf8 {[%clk 0:00:54.5]} 23. Ne5 {[%clk 0:02:12.4]}
23... Kg7 {[%clk 0:00:54.4]} 24. Rc1 {[%clk 0:02:09.5]} 24... Qa7 {[%clk
0:00:52.2]} 25. Rhd1 {[%clk 0:02:08.2]} 25... h4 {[%clk 0:00:51.4]} 26. Qf4
{[%clk 0:02:07.7]} 26... h3 {[%clk 0:00:42.2]} 27. Ng4 {[%clk 0:02:01.6]} 27...
Qc7 {[%clk 0:00:42.5]} 28. Qd2 {[%clk 0:01:59.4]} 28... h2 {[%clk 0:00:36.4]}
29. Rh1 {[%clk 0:01:58.9]} 29... Rh3 {[%clk 0:00:32.7]} 30. f4 {[%clk
0:01:42.3]} 30... Rch8 {[%clk 0:00:28.5]} 31. Rce1 {[%clk 0:01:39.6]} 31... R8h4
{[%clk 0:00:23.3]} 32. Ne5 {[%clk 0:01:36.8]} 32... Nd6 {[%clk 0:00:17.9]} 33.
f3 {[%clk 0:01:26.2]} 33... Nc4 {[%clk 0:00:18]} 34. Qc1 {[%clk 0:01:22.6]}
34... Nxe5 {[%clk 0:00:17.3]} 35. fxe5 {[%clk 0:01:20.2]} 35... Rxd4 {[%clk
0:00:15.6]} 36. Qe3 {[%clk 0:01:17.3]} 36... Qc4 {[%clk 0:00:14.9]} 37. Re2
{[%clk 0:01:07.1]} 37... Rf4 {[%clk 0:00:12.5]} 38. b3 {[%clk 0:01:03.9]} 38...
Qd4 {[%clk 0:00:09.5]} 39. Qxd4 {[%clk 0:01:00.5]} 39... Rxd4 {[%clk 0:00:10.4]}
40. Rexh2 {[%clk 0:01:00.7]} 40... Rxh2 {[%clk 0:00:10.7]} 41. Rxh2 {[%clk
0:01:01.6]} 41... Rf4 {[%clk 0:00:11.3]} 42. Rh8 {[%clk 0:01:00.1]} 42... Kxh8
{[%clk 0:00:11.4]} 0-1

[Event "*** Titled Tuesday Blitz"]
[Site "Chess.com"]
[Date "2021.03.09"]
[Round "10"]
[White "Unknown_IM"]
[Black "AurumO"]
[Result "1-0"]
[WhiteElo "2390"]
[BlackElo "2018"]
[TimeControl "180+1"]
[EndTime "11:58:48 PST"]
[Termination "Unknown_IM won on time"]

1. e4 {[%clk 0:03:00.9]} 1... c5 {[%clk 0:02:53.8]} 2. Nf3 {[%clk 0:03:01.2]}
2... Nc6 {[%clk 0:02:53.3]} 3. Bb5 {[%clk 0:03:00.8]} 3... g6 {[%clk 0:02:52.8]}
4. Bxc6 {[%clk 0:03:00.7]} 4... dxc6 {[%clk 0:02:53.1]} 5. O-O {[%clk
0:03:00.8]} 5... Bg7 {[%clk 0:02:53.3]} 6. Re1 {[%clk 0:02:59.9]} 6... e5 {[%clk
0:02:53]} 7. h3 {[%clk 0:02:58.6]} 7... Qc7 {[%clk 0:02:47.9]} 8. d3 {[%clk
0:02:58.8]} 8... Nf6 {[%clk 0:02:46.1]} 9. Be3 {[%clk 0:02:58.1]} 9... b6 {[%clk
0:02:45.7]} 10. Nc3 {[%clk 0:02:58.6]} 10... O-O {[%clk 0:02:45.1]} 11. Qc1
{[%clk 0:02:57.6]} 11... Be6 {[%clk 0:02:37.5]} 12. a3 {[%clk 0:02:56.7]} 12...
c4 {[%clk 0:02:22.8]} 13. d4 {[%clk 0:02:55.8]} 13... exd4 {[%clk 0:02:22.2]}
14. Nxd4 {[%clk 0:02:56.7]} 14... Bd7 {[%clk 0:02:05.9]} 15. Bh6 {[%clk
0:02:54.8]} 15... Rad8 {[%clk 0:01:53.8]} 16. Bxg7 {[%clk 0:02:54.1]} 16... Kxg7
{[%clk 0:01:54.1]} 17. Qe3 {[%clk 0:02:54.4]} 17... Rfe8 {[%clk 0:01:47.8]} 18.
Rad1 {[%clk 0:02:52.6]} 18... a6 {[%clk 0:01:40.2]} 19. f4 {[%clk 0:02:19.8]}
19... Bc8 {[%clk 0:01:09]} 20. Nf3 {[%clk 0:02:11.8]} 20... Rxd1 {[%clk
0:01:06.4]} 21. Rxd1 {[%clk 0:02:11.5]} 21... b5 {[%clk 0:00:46]} 22. e5 {[%clk
0:02:00.7]} 22... Nd5 {[%clk 0:00:43.8]} 23. Nxd5 {[%clk 0:01:49.8]} 23... cxd5
{[%clk 0:00:44.7]} 24. Rxd5 {[%clk 0:01:50.5]} 24... Bb7 {[%clk 0:00:41.4]} 25.
Rd1 {[%clk 0:01:47]} 25... Rd8 {[%clk 0:00:31]} 26. Rxd8 {[%clk 0:01:45.7]}
26... Qxd8 {[%clk 0:00:31.9]} 27. Qd4 {[%clk 0:01:46.1]} 27... Qxd4+ {[%clk
0:00:20]} 28. Nxd4 {[%clk 0:01:47]} 28... Be4 {[%clk 0:00:17.3]} 29. c3 {[%clk
0:01:45.9]} 29... f6 {[%clk 0:00:13.4]} 30. g3 {[%clk 0:01:39.1]} 30... fxe5
{[%clk 0:00:12.9]} 31. fxe5 {[%clk 0:01:40]} 31... Kf7 {[%clk 0:00:12]} 32. Kf2
{[%clk 0:01:40.4]} 32... h5 {[%clk 0:00:09.2]} 33. Ke3 {[%clk 0:01:40.3]} 33...
Bb7 {[%clk 0:00:09.1]} 34. Kf4 {[%clk 0:01:33]} 34... Bg2 {[%clk 0:00:04.3]} 35.
h4 {[%clk 0:01:28.7]} 35... Bd5 {[%clk 0:00:04.8]} 36. Kg5 {[%clk 0:01:28.2]}
36... Be4 {[%clk 0:00:05]} 37. Kf4 {[%clk 0:01:23.2]} 37... Bd5 {[%clk
0:00:04.8]} 38. Nc2 {[%clk 0:01:23.4]} 38... Ke6 {[%clk 0:00:04.3]} 39. Nb4
{[%clk 0:01:21.7]} 39... Bb7 {[%clk 0:00:03.1]} 40. Nc2 {[%clk 0:01:19.6]} 40...
Bd5 {[%clk 0:00:01.2]} 41. Ne3 {[%clk 0:01:19.9]} 41... Bc6 {[%clk 0:00:01.2]}
42. Nd1 {[%clk 0:01:20.3]} 42... Be8 {[%clk 0:00:01.6]} 43. Nf2 {[%clk
0:01:20.8]} 43... Bc6 {[%clk 0:00:02.5]} 44. Ne4 {[%clk 0:01:21.3]} 44... Bd5
{[%clk 0:00:02.9]} 45. Ng5+ {[%clk 0:01:20.7]} 45... Ke7 {[%clk 0:00:01]} 46.
Nh7 {[%clk 0:01:15.5]} 1-0

[Event "*** Titled Tuesday Blitz"]
[Site "Chess.com"]
[Date "2021.03.09"]
[Round "10"]
[White "shnitez"]
[Black "kekic76"]
[Result "1-0"]
[WhiteElo "2506"]
[BlackElo "2361"]
[TimeControl "180+1"]
[EndTime "11:58:49 PST"]
[Termination "shnitez won by resignation"]

1. c4 {[%clk 0:03:00.9]} 1... c5 {[%clk 0:02:58.6]} 2. Nc3 {[%clk 0:03:00.7]}
2... b6 {[%clk 0:02:58.7]} 3. Nf3 {[%clk 0:02:58.2]} 3... Bb7 {[%clk 0:02:58.6]}
4. g3 {[%clk 0:02:58.4]} 4... Nf6 {[%clk 0:02:57.7]} 5. Bg2 {[%clk 0:02:58.6]}
5... g6 {[%clk 0:02:58]} 6. O-O {[%clk 0:02:58.9]} 6... Bg7 {[%clk 0:02:58.2]}
7. Re1 {[%clk 0:02:53]} 7... O-O {[%clk 0:02:57.1]} 8. e4 {[%clk 0:02:52.9]}
8... d6 {[%clk 0:02:57.2]} 9. d3 {[%clk 0:02:33.2]} 9... Nc6 {[%clk 0:02:54.9]}
10. h3 {[%clk 0:02:31.7]} 10... Ne8 {[%clk 0:02:53]} 11. Be3 {[%clk 0:02:27.3]}
11... Nc7 {[%clk 0:02:52.9]} 12. d4 {[%clk 0:02:18.6]} 12... cxd4 {[%clk
0:02:51.7]} 13. Nxd4 {[%clk 0:02:19.5]} 13... Nxd4 {[%clk 0:02:47.4]} 14. Bxd4
{[%clk 0:02:20.4]} 14... Bxd4 {[%clk 0:02:47.2]} 15. Qxd4 {[%clk 0:02:21.3]}
15... Ne6 {[%clk 0:02:46.8]} 16. Qd2 {[%clk 0:02:21.4]} 16... Rc8 {[%clk
0:02:46.6]} 17. b3 {[%clk 0:02:21.7]} 17... Qc7 {[%clk 0:02:46.3]} 18. Nd5
{[%clk 0:02:18]} 18... Bxd5 {[%clk 0:02:45.6]} 19. exd5 {[%clk 0:02:18.9]} 19...
Nc5 {[%clk 0:02:44.4]} 20. Re3 {[%clk 0:02:10.7]} 20... Rfe8 {[%clk 0:02:41.4]}
21. Rae1 {[%clk 0:02:10]} 21... a5 {[%clk 0:02:38.3]} 22. h4 {[%clk 0:02:01.9]}
22... h5 {[%clk 0:02:37]} 23. Qe2 {[%clk 0:01:58.1]} 23... Kf8 {[%clk
0:02:34.2]} 24. a4 {[%clk 0:01:52.6]} 24... Rb8 {[%clk 0:02:04.5]} 25. Be4
{[%clk 0:01:49.5]} 25... Nd7 {[%clk 0:01:54.4]} 26. f4 {[%clk 0:01:31.6]} 26...
Nf6 {[%clk 0:01:51.4]} 27. Bf3 {[%clk 0:01:30.7]} 27... Qd7 {[%clk 0:01:50.1]}
28. Qd3 {[%clk 0:01:25]} 28... Rb7 {[%clk 0:01:49.8]} 29. R3e2 {[%clk
0:01:17.9]} 29... Qc7 {[%clk 0:01:41.7]} 30. f5 {[%clk 0:01:13.8]} 30... gxf5
{[%clk 0:01:31.8]} 31. Qxf5 {[%clk 0:01:13.3]} 31... Qd7 {[%clk 0:01:32]} 32.
Qg5 {[%clk 0:01:10.5]} 32... Qh3 {[%clk 0:01:09.5]} 33. Rh2 {[%clk 0:01:00.8]}
33... Qd7 {[%clk 0:01:02.3]} 34. Bxh5 {[%clk 0:01:00.9]} 34... Nxh5 {[%clk
0:00:50.9]} 35. Qxh5 {[%clk 0:01:01.8]} 35... e5 {[%clk 0:00:50.5]} 36. Rf2
{[%clk 0:00:46.6]} 36... e4 {[%clk 0:00:39.4]} 37. Ref1 {[%clk 0:00:44.1]} 37...
Kg7 {[%clk 0:00:16.5]} 38. Qg5+ {[%clk 0:00:42.4]} 38... Kh7 {[%clk 0:00:16.2]}
39. Rf6 {[%clk 0:00:41.2]} 1-0

[Event "*** Titled Tuesday Blitz"]
[Site "Chess.com"]
[Date "2021.03.09"]
[Round "10"]
[White "ukchessbomber"]
[Black "konradrutkowski"]
[Result "0-1"]
[WhiteElo "2524"]
[BlackElo "2437"]
[TimeControl "180+1"]
[EndTime "11:58:50 PST"]
[Termination "konradrutkowski won by resignation"]

1. f4 {[%clk 0:03:00.9]} 1... e5 {[%clk 0:02:57]} 2. fxe5 {[%clk 0:02:58.9]}
2... d6 {[%clk 0:02:57.3]} 3. exd6 {[%clk 0:02:57.9]} 3... Bxd6 {[%clk
0:02:58.2]} 4. Nf3 {[%clk 0:02:58.2]} 4... g5 {[%clk 0:02:58.3]} 5. d4 {[%clk
0:02:49.6]} 5... g4 {[%clk 0:02:32]} 6. Ng5 {[%clk 0:02:48.8]} 6... Nc6 {[%clk
0:02:05.9]} 7. c3 {[%clk 0:02:38.8]} 7... Qe7 {[%clk 0:01:16.4]} 8. e4 {[%clk
0:02:32.9]} 8... f6 {[%clk 0:01:12.8]} 9. e5 {[%clk 0:02:23.5]} 9... fxe5 {[%clk
0:01:09.9]} 10. Bc4 {[%clk 0:02:23.5]} 10... exd4+ {[%clk 0:00:52.5]} 11. Kd2
{[%clk 0:02:03.1]} 11... Bf4+ {[%clk 0:00:42.4]} 12. Kc2 {[%clk 0:02:02.1]}
12... Bf5+ {[%clk 0:00:42]} 13. Bd3 {[%clk 0:02:01.8]} 13... Bxd3+ {[%clk
0:00:40.3]} 14. Qxd3 {[%clk 0:02:02.7]} 14... Bxc1 {[%clk 0:00:36]} 15. Ne4
{[%clk 0:01:51.4]} 15... Be3 {[%clk 0:00:31.6]} 16. Nbd2 {[%clk 0:01:44.1]}
16... O-O-O {[%clk 0:00:31.3]} 17. Qb5 {[%clk 0:01:39.1]} 17... Nf6 {[%clk
0:00:27]} 18. Qf5+ {[%clk 0:01:38.9]} 18... Nd7 {[%clk 0:00:23.9]} 19. Rhe1
{[%clk 0:01:32]} 19... Kb8 {[%clk 0:00:23.5]} 20. Qxg4 {[%clk 0:01:30]} 20...
Nc5 {[%clk 0:00:23]} 21. Ng3 {[%clk 0:01:20.5]} 21... Qf7 {[%clk 0:00:20.5]} 22.
Nf3 {[%clk 0:01:01.7]} 22... Bf2 {[%clk 0:00:17.3]} 23. Rf1 {[%clk 0:00:58.9]}
23... Bxg3 {[%clk 0:00:17.3]} 24. Qxg3 {[%clk 0:00:47.7]} 24... dxc3 {[%clk
0:00:17.9]} 25. Ne5 {[%clk 0:00:28.6]} 25... Rd2+ {[%clk 0:00:17.8]} 26. Kc1
{[%clk 0:00:17.2]} 26... Nxe5 {[%clk 0:00:17.4]} 27. Rxf7 {[%clk 0:00:15.1]}
27... Ned3+ {[%clk 0:00:17.5]} 0-1

[Event "*** Titled Tuesday Blitz"]
[Site "Chess.com"]
[Date "2021.03.09"]
[Round "10"]
[White "QueenOfTactics90"]
[Black "Klavdia_Nik"]
[Result "1-0"]
[WhiteElo "1975"]
[BlackElo "2026"]
[TimeControl "180+1"]
[EndTime "11:58:56 PST"]
[Termination "QueenOfTactics90 won on time"]

1. e4 {[%clk 0:03:00.9]} 1... g6 {[%clk 0:02:43.6]} 2. d4 {[%clk 0:02:59.7]}
2... Bg7 {[%clk 0:02:44]} 3. Nc3 {[%clk 0:03:00.1]} 3... d6 {[%clk 0:02:43.7]}
4. f4 {[%clk 0:03:00.1]} 4... c6 {[%clk 0:02:38.7]} 5. Nf3 {[%clk 0:03:00.4]}
5... Nf6 {[%clk 0:02:38.6]} 6. Bd3 {[%clk 0:02:55.5]} 6... a6 {[%clk 0:02:35.6]}
7. O-O {[%clk 0:02:53.8]} 7... b5 {[%clk 0:02:34.2]} 8. a3 {[%clk 0:02:52.5]}
8... O-O {[%clk 0:02:31.5]} 9. h3 {[%clk 0:02:49]} 9... Bb7 {[%clk 0:02:23.6]}
10. Be3 {[%clk 0:02:47.8]} 10... Re8 {[%clk 0:02:15]} 11. e5 {[%clk 0:02:39.9]}
11... Nd5 {[%clk 0:02:14.4]} 12. Nxd5 {[%clk 0:02:37]} 12... cxd5 {[%clk
0:02:13.4]} 13. Qe1 {[%clk 0:02:31.9]} 13... e6 {[%clk 0:02:13.2]} 14. Qf2
{[%clk 0:02:30.3]} 14... Nd7 {[%clk 0:02:07.6]} 15. g4 {[%clk 0:02:28.4]} 15...
Qc7 {[%clk 0:02:02]} 16. c3 {[%clk 0:02:27.6]} 16... Nb6 {[%clk 0:01:45.1]} 17.
Rae1 {[%clk 0:02:24.4]} 17... Nc4 {[%clk 0:01:42.2]} 18. Bc1 {[%clk 0:02:24.4]}
18... f5 {[%clk 0:01:17.2]} 19. exf6 {[%clk 0:02:20.3]} 19... Bxf6 {[%clk
0:01:16.9]} 20. f5 {[%clk 0:02:15.9]} 20... gxf5 {[%clk 0:00:55.9]} 21. gxf5
{[%clk 0:02:15.6]} 21... e5 {[%clk 0:00:55.8]} 22. Kh1 {[%clk 0:01:50.6]} 22...
Kh8 {[%clk 0:00:55.4]} 23. Ng5 {[%clk 0:01:45.9]} 23... Bc8 {[%clk 0:00:37.4]}
24. Rg1 {[%clk 0:01:19.2]} 24... Rg8 {[%clk 0:00:36.5]} 25. Ne6 {[%clk
0:01:14.4]} 25... Bxe6 {[%clk 0:00:27.9]} 26. fxe6 {[%clk 0:01:12.9]} 26... Qe7
{[%clk 0:00:28.3]} 27. Qf5 {[%clk 0:01:11.3]} 27... e4 {[%clk 0:00:10]} 28. Be2
{[%clk 0:01:10.6]} 28... Nb6 {[%clk 0:00:08.9]} 29. Bh5 {[%clk 0:01:07.3]} 29...
Raf8 {[%clk 0:00:08]} 30. Bf7 {[%clk 0:01:06.8]} 30... Rg7 {[%clk 0:00:05.6]}
31. Rxg7 {[%clk 0:01:05.5]} 31... Kxg7 {[%clk 0:00:04.3]} 32. Rg1+ {[%clk
0:01:04.7]} 32... Kh8 {[%clk 0:00:04.2]} 33. Bh6 {[%clk 0:01:02.3]} 33... Rxf7
{[%clk 0:00:02.5]} 34. exf7 {[%clk 0:01:01.9]} 34... Qxf7 {[%clk 0:00:03.1]} 35.
Rf1 {[%clk 0:01:00.4]} 35... Nd7 {[%clk 0:00:02.2]} 36. Bg5 {[%clk 0:00:56.3]}
36... Qg6 {[%clk 0:00:01.5]} 37. Qxg6 {[%clk 0:00:54.4]} 37... hxg6 {[%clk
0:00:01.1]} 38. Bxf6+ {[%clk 0:00:54.7]} 1-0

[Event "*** Titled Tuesday Blitz"]
[Site "Chess.com"]
[Date "2021.03.09"]
[Round "10"]
[White "coco_crc"]
[Black "Chesspirate_Channel"]
[Result "0-1"]
[WhiteElo "2220"]
[BlackElo "2400"]
[TimeControl "180+1"]
[EndTime "11:59:00 PST"]
[Termination "Chesspirate_Channel won by resignation"]

1. e4 {[%clk 0:03:00.9]} 1... e5 {[%clk 0:02:28]} 2. Nf3 {[%clk 0:02:59.2]} 2...
d5 {[%clk 0:02:27.9]} 3. Nxe5 {[%clk 0:02:56.7]} 3... Bd6 {[%clk 0:02:27.8]} 4.
d4 {[%clk 0:02:56.1]} 4... dxe4 {[%clk 0:02:28]} 5. Nc4 {[%clk 0:02:52.1]} 5...
Be7 {[%clk 0:02:27.6]} 6. Nc3 {[%clk 0:02:50.7]} 6... Nf6 {[%clk 0:02:27]} 7.
Bg5 {[%clk 0:02:49.9]} 7... Bf5 {[%clk 0:02:25.3]} 8. Ne3 {[%clk 0:02:47.1]}
8... Bg6 {[%clk 0:02:25.1]} 9. d5 {[%clk 0:02:41.2]} 9... O-O {[%clk 0:02:23.5]}
10. Be2 {[%clk 0:02:37.3]} 10... Nxd5 {[%clk 0:02:20.5]} 11. Bxe7 {[%clk
0:02:31]} 11... Nxe7 {[%clk 0:02:21.4]} 12. O-O {[%clk 0:02:29.6]} 12... Nbc6
{[%clk 0:02:18.8]} 13. Ncd5 {[%clk 0:02:28.1]} 13... Nxd5 {[%clk 0:02:04.3]} 14.
Nxd5 {[%clk 0:02:29]} 14... Re8 {[%clk 0:01:57.9]} 15. Qd2 {[%clk 0:02:27.9]}
15... Ne5 {[%clk 0:01:58]} 16. Rad1 {[%clk 0:02:26.2]} 16... c6 {[%clk
0:01:58.4]} 17. Nf4 {[%clk 0:02:25.1]} 17... Qxd2 {[%clk 0:01:53.3]} 18. Rxd2
{[%clk 0:02:26]} 18... Rad8 {[%clk 0:01:53.3]} 19. Rfd1 {[%clk 0:02:25.9]} 19...
Rxd2 {[%clk 0:01:53.2]} 20. Rxd2 {[%clk 0:02:26.8]} 20... Kf8 {[%clk 0:01:48.6]}
21. Rd4 {[%clk 0:02:25.8]} 21... f5 {[%clk 0:01:43.7]} 22. Nxg6+ {[%clk
0:02:22]} 22... hxg6 {[%clk 0:01:32.4]} 23. Kf1 {[%clk 0:02:18.3]} 23... Ke7
{[%clk 0:01:32.5]} 24. f4 {[%clk 0:02:05.8]} 24... exf3 {[%clk 0:01:15.2]} 25.
Bxf3 {[%clk 0:02:03.8]} 25... Rd8 {[%clk 0:01:14.7]} 26. Rxd8 {[%clk 0:02:01.7]}
26... Kxd8 {[%clk 0:01:15.1]} 27. Be2 {[%clk 0:02:02.2]} 27... Ke7 {[%clk
0:01:12.2]} 28. Kf2 {[%clk 0:02:01.9]} 28... f4 {[%clk 0:01:09]} 29. g3 {[%clk
0:01:57.5]} 29... g5 {[%clk 0:01:09]} 30. h4 {[%clk 0:01:57.5]} 30... fxg3+
{[%clk 0:00:41.7]} 31. Kxg3 {[%clk 0:01:58.4]} 31... gxh4+ {[%clk 0:00:42.1]}
32. Kxh4 {[%clk 0:01:57.5]} 32... Kf6 {[%clk 0:00:42.1]} 33. Kg3 {[%clk
0:01:57.3]} 33... g5 {[%clk 0:00:39.8]} 34. Bf1 {[%clk 0:01:56.4]} 34... b6
{[%clk 0:00:39.3]} 35. b4 {[%clk 0:01:55.2]} 35... c5 {[%clk 0:00:26.6]} 36.
bxc5 {[%clk 0:01:56.1]} 36... bxc5 {[%clk 0:00:27.5]} 37. Kf2 {[%clk 0:01:56.2]}
37... Kf5 {[%clk 0:00:24.2]} 38. Ke3 {[%clk 0:01:56.6]} 38... g4 {[%clk
0:00:24.4]} 39. Ba6 {[%clk 0:01:55.2]} 39... Kg5 {[%clk 0:00:23.9]} 40. Ke4
{[%clk 0:01:54.2]} 40... Nf3 {[%clk 0:00:23.9]} 41. Kd5 {[%clk 0:01:42.8]} 41...
Kf4 {[%clk 0:00:20.5]} 42. Kxc5 {[%clk 0:01:40.5]} 42... g3 {[%clk 0:00:20.9]}
43. Bf1 {[%clk 0:01:40.4]} 43... Nd2 {[%clk 0:00:20.6]} 44. Bh3 {[%clk
0:01:38.3]} 44... Ke3 {[%clk 0:00:18.5]} 45. Kb5 {[%clk 0:01:30.2]} 45... Kf2
{[%clk 0:00:18.8]} 46. Ka6 {[%clk 0:01:27.6]} 46... Kg1 {[%clk 0:00:18.7]} 47.
Bc8 {[%clk 0:01:22.9]} 47... Nf3 {[%clk 0:00:18.6]} 48. Bh3 {[%clk 0:01:16.2]}
48... Kh2 {[%clk 0:00:18.4]} 49. Bf1 {[%clk 0:01:15.9]} 49... Nd2 {[%clk
0:00:18.7]} 50. Bb5 {[%clk 0:01:10]} 50... g2 {[%clk 0:00:18.8]} 51. c4 {[%clk
0:01:08.6]} 51... g1=Q {[%clk 0:00:17.8]} 52. c5 {[%clk 0:01:09.2]} 52... Qxc5
{[%clk 0:00:17.8]} 0-1